Workbook

Sheet Лист1
A1: Школа | C1: МАОУ "Пешнигортская СОШ" | F1: Утвердил: | G1: должность | H1: Индивидуальный предприниматель
A2: Типовое примерное меню приготавливаемых блюд | G2: фамилия | H2: Петрова Ирина Алексеевна
A3: Возрастная категория | E3: 7-11 лет | G3: дата | H3: 27 | I3: 10 | J3: 2025
H4: день | I4: месяц | J4: год
A5: Неделя | B5: День недели | C5: Прием пищи | D5: Раздел меню | E5: Блюда | F5: Вес блюда, г | G5: Белки | H5: Жиры | I5: Углеводы | J5: Калорийность | K5: № рецептуры | L5: Цена
A6: 1 | B6: 1 | C6: Завтрак | D6: гор.Блюдо
D7: гастрономия
D8: гор.напиток
D9: хлеб бел.
D10: хлеб черн.
D12: итого | G12: =SUM(G6:G11) -> 0 | H12: =SUM(H6:H11) -> 0 | I12: 0 | J12: 0 | L12: =SUM(L6:L11) -> 0.00
A13: 1 | B13: 1 | C13: Обед | D13: закуска | E13: Огурцы соленые | F13: 60 | G13: 0.48 | H13: 0.06 | I13: 1.02 | J13: 6.6 | K13: 149 | L13: 12.00
D14: 1 блюдо | E14: Суп картофельный с бобовыми | F14: 200 | G14: 5.04 | H14: 2.86 | I14: 11.68 | J14: 92.6 | K14: 113 | L14: 10.00
D15: 2 блюдо | E15: Котлеты из мяса птицы с соусом томатным | F15: 100 | G15: 10.58 | H15: 12.6 | I15: 8.4 | J15: 189.25 | K15: ТУ 031 | L15: 47.50
D16: гарнир | E16: Рис отварной | F16: 150 | G16: 3.77 | H16: 5.43 | I16: 38.85 | J16: 219.3 | K16: 385 | L16: 16.00
D17: напиток | E17: Кисель из концентрата витамин | F17: 200 | G17: 0 | H17: 0 | I17: 15 | J17: 60 | K17: 484 | L17: 10.00
D18: хлеб бел. | E18: Хлеб пшеничный | F18: 50 | G18: 3.94 | H18: 0.4 | I18: 26.6 | J18: 129.4 | L18: 6.00
D19: хлеб черн. | E19: Хлеб ржано-пшеничный | F19: 25 | G19: 1.87 | H19: 0.27 | I19: 12.12 | J19: 59.5 | L19: 4.00
D21: итого | F21: 785 | G21: =SUM(G13:G20) -> 25.68 | H21: =SUM(H13:H20) -> 21.62 | I21: =SUM(I13:I20) -> 113.67 | J21: =SUM(J13:J20) -> 756.65 | L21: =SUM(L13:L20) -> 105.5
A22: 1 | B22: 1 | C22: Итого за день: | F22: =F21+F12 -> 785 | G22: =G21+G12 -> 25.68 | H22: =H21+H12 -> 21.62 | I22: =I21+I12 -> 113.67 | J22: =J21+J12 -> 756.65 | L22: =L21+L12 -> 105.5
A23: 1 | B23: 2 | C23: Завтрак | D23: закуска
D24: 2 блюдо
D25: охл напиток
D26: бул.изделия
D27: хлеб.бел
D29: итого | G29: =SUM(G23:G28) -> 0 | H29: =SUM(H23:H28) -> 0 | I29: =SUM(I23:I28) -> 0 | J29: =SUM(J23:J28) -> 0 | L29: =SUM(L23:L28) -> 0
A30: 1 | B30: 2 | C30: Обед | D30: закуска | E30: Салат картофельный с зеленым горошком | F30: 60 | G30: 1.5 | H30: 3.78 | I30: 4.98 | J30: 60 | K30: 42 | L30: 10.00
D31: 1 блюдо | E31: Суп с рыбными консервами | F31: 200 | G31: 7.44 | H31: 9.12 | I31: 8.04 | J31: 144 | K31: 122 | L31: 10.00
D32: 2 блюдо | E32: Котлеты из говядины с соусом томатным | F32: 100 | G32: 10.26 | H32: 11.92 | I32: 6.74 | J32: 180.54 | K32: ТУ 030 | L32: 49.50
D33: гарнир | E33: Макаронные изделия отварные | F33: 150 | G33: 5.55 | H33: 4.95 | I33: 29.55 | J33: 184.5 | K33: 256 | L33: 14.00
D34: напиток | E34: Компот из свежих яблок | F34: 200 | G34: 0.1 | H34: 0.1 | I34: 11.1 | J34: 46 | K34: 486 | L34: 12.00
D35: хлеб бел. | E35: Хлеб пшеничный | F35: 50 | G35: 3.94 | H35: 0.4 | I35: 26.6 | J35: 129.4 | L35: 6.00
D36: хлеб черн. | E36: Хлеб ржано-пшеничный | F36: 25 | G36: 1.87 | H36: 0.27 | I36: 12.12 | J36: 59.5 | L36: 4.00
D38: итого | F38: 785 | G38: =SUM(G30:G37) -> 30.66 | H38: =SUM(H30:H37) -> 30.54 | I38: 99.13 | J38: 803.94 | L38: 105.5
A39: 1 | B39: 2 | C39: Итого за день: | F39: =F38+F29 -> 785 | G39: =G38+G29 -> 30.66 | H39: 30.54 | I39: 99.13 | J39: 803.94 | K39: 0 | L39: 105.5
A40: 1 | B40: 3 | C40: Завтрак | D40: гор. Блюдо
D41: охл.напиток
D42: фрукты
D43: хлеб бел.
D44: хлеб черн.
D46: итого | G46: =SUM(G40:G45) -> 0 | H46: =SUM(H40:H45) -> 0 | I46: =SUM(I40:I45) -> 0 | J46: =SUM(J40:J45) -> 0 | L46: =SUM(L40:L45) -> 0.00
A47: 1 | B47: 3 | C47: Обед | D47: закуска | E47: Салат из квашеной капусты с луком | F47: 100 | G47: 1.6 | H47: 6 | I47: 8.2 | J47: 94 | K47: 9 | L47: 8.00
D48: 1 блюдо | E48: Рассольник Ленинградский | F48: 200/5 | G48: 2.1 | H48: 4.08 | I48: 10.6 | J48: 87.6 | K48: 100 | L48: 10.00
D49: 2 блюдо | E49: Котлеты рыбные из минтая с соусом томатным | F49: 100 | G49: 9.53 | H49: 7.23 | I49: 7.35 | J49: 137.74 | K49: ТУ584 | L49: 39.50
D50: гарнир | E50: Пюре картофельное | F50: 150 | G50: 4.05 | H50: 6 | I50: 8.7 | J50: 105 | K50: 377 | L50: 26.00
D51: напиток | E51: Чай с сахаром | F51: 200 | G51: 0.2 | H51: 0.1 | I51: 9.3 | J51: 38 | K51: 457 | L51: 10.00
D52: хлеб бел. | E52: Хлеб пшеничный | F52: 50 | G52: 3.94 | H52: 0.4 | I52: 26.6 | J52: 129.4 | L52: 6.00
D53: хлеб черн. | E53: Хлеб ржано-пшеничный | F53: 50 | G53: 3.74 | H53: 0.54 | I53: 24.24 | J53: 119 | L53: 6.00
D55: итого | F55: 855 | G55: =SUM(G47:G54) -> 25.16 | H55: =SUM(H47:H54) -> 24.35 | I55: 94.99 | J55: 710.74 | L55: 105.5
A56: 1 | B56: 3 | C56: Итого за день: | F56: =F55+F46 -> 855 | G56: =G55+G46 -> 25.16 | H56: 24.35 | I56: 94.99 | J56: 710.74 | K56: 0 | L56: 105.5
A57: 1 | B57: 4 | C57: Завтрак | D57: 2 блюдо
D58: гарнир
D59: гастрономия
D60: гор.напиток
D61: хлеб бел.
D62: хлеб черн.
D63: итого | G63: =SUM(G57:G62) -> 0 | H63: =SUM(H57:H62) -> 0 | I63: 0 | J63: 0 | L63: =SUM(L57:L62) -> 0.00
A64: 1 | B64: 4 | C64: Обед | D64: закуска | E64: Винегрет овощной | F64: 60 | G64: 0.96 | H64: 3.72 | I64: 3.96 | J64: 52.8 | K64: 47 | L64: 10.00
D65: 1 блюдо | E65: Щи из свежей капусты с картофелем | F65: 200/5 | G65: 1.2 | H65: 3.6 | I65: 3.04 | J65: 49.4 | K65: 104 | L65: 10.00
D66: 2 блюдо | E66: Котлеты из мяса птицы с соусом томатным | F66: 100 | G66: 10.58 | H66: 12.6 | I66: 8.4 | J66: 189.25 | K66: ТУ031 | L66: 47.50
D67: гарнир | E67: Каша гречневая вязкая | F67: 150 | G67: 6.69 | H67: 5.76 | I67: 24.15 | J67: 175.05 | K67: 213 | L67: 16.00
D68: напиток | E68: Чай с лимоном | F68: 200/5 | G68: 0.3 | H68: 0.1 | I68: 9.5 | J68: 40 | K68: 459 | L68: 10.00
D69: хлеб бел. | E69: Хлеб пшеничный | F69: 50 | G69: 3.94 | H69: 0.4 | I69: 26.6 | J69: 129.4 | L69: 6.00
D70: хлеб черн. | E70: Хлеб ржано-пшеничный | F70: 50 | G70: 3.74 | H70: 0.54 | I70: 24.24 | J70: 119 | L70: 6.00
D72: итого | F72: 820 | G72: =SUM(G64:G71) -> 27.41 | H72: =SUM(H64:H71) -> 26.72 | I72: 99.89 | J72: 754.9 | L72: 105.5
A73: 1 | B73: 4 | C73: Итого за день: | F73: =F72+F63 -> 820 | G73: =G72+G63 -> 27.41 | H73: 26.72 | I73: 99.89 | J73: 754.9 | K73: 0 | L73: 105.5
A74: 1 | B74: 5 | C74: Завтрак | D74: гор. Блюдо
D75: гастрономия
D76: гор.напиток
D77: хлеб бел.
D78: хлеб черн.
D80: итого | G80: =SUM(G74:G79) -> 0 | H80: =SUM(H74:H79) -> 0 | I80: =SUM(I74:I79) -> 0 | J80: =SUM(J74:J79) -> 0 | L80: =SUM(L74:L79) -> 0
A81: 1 | B81: 5 | C81: Обед | D81: закуска | E81: Икра морковная | F81: 100 | G81: 1.4 | H81: 3.8 | I81: 6.5 | J81: 66 | K81: 54 | L81: 10.00
D82: 1 блюдо | E82: Борщ с капустой и картофелем | F82: 200/5 | G82: 1.48 | H82: 3.54 | I82: 5.56 | J82: 60 | K82: 95 | L82: 10.00
D83: 2 блюдо | E83: Фрикадельки из говядины с соусом томатным | F83: 100 | G83: 10.26 | H83: 10.29 | I83: 6.35 | J83: 159.11 | K83: ТУ030 | L83: 49.50
D84: гарнир | E84: Макаронные изделя отварные | F84: 150 | G84: 5.55 | H84: 4.95 | I84: 29.55 | J84: 184.5 | K84: 256 | L84: 14.00
D85: напиток | E85: Кофейный напиток с молоком | F85: 200 | G85: 1.4 | H85: 1.2 | I85: 11.4 | J85: 63 | K85: 464 | L85: 13.00
D86: хлеб бел. | E86: Хлеб пшеничный | F86: 50 | G86: 3.94 | H86: 0.4 | I86: 26.6 | J86: 129.4 | L86: 6.00
D87: хлеб черн. | E87: Хлеб ржано-пшеничный | F87: 25 | G87: 1.87 | H87: 0.27 | I87: 12.12 | J87: 59.5 | L87: 4.00
D89: итого | F89: 830 | G89: =SUM(G81:G88) -> 25.9 | H89: =SUM(H81:H88) -> 24.45 | I89: 98.08 | J89: 721.51 | L89: 106.5
A90: 1 | B90: 5 | C90: Итого за день: | F90: =F89+F80 -> 830 | G90: =G89+G80 -> 25.9 | H90: 24.45 | I90: 98.08 | J90: 721.51 | K90: 0 | L90: 106.5
A91: 2 | B91: 1 | C91: Завтрак | D91: гор.блюдо
D92: гастрономия
D93: гор.напиток
D94: хлеб бел.
D95: хлеб черн.
D97: итого | G97: =SUM(G91:G96) -> 0 | H97: 0 | I97: 0 | J97: 0 | L97: 0
A98: 2 | B98: 1 | C98: Обед | D98: закуска | E98: Огурцы соленые | F98: 60 | G98: 0.48 | H98: 0.06 | I98: 1.02 | J98: 6.6 | K98: 149 | L98: 12.00
D99: 1 блюдо | E99: Щи из свежей капусты с картофелем | F99: 200/5 | G99: 1.2 | H99: 3.6 | I99: 3.04 | J99: 49.4 | K99: 104 | L99: 10.00
D100: 2 блюдо | E100: Котлеты из мяса птицы с соусом томатным | F100: 100 | G100: 10.58 | H100: 12.6 | I100: 8.4 | J100: 189.25 | K100: ТУ 031 | L100: 47.50
D101: гарнир | E101: Каша гречневая вязкая | F101: 150 | G101: 6.69 | H101: 5.76 | I101: 24.15 | J101: 175.05 | K101: 213 | L101: 16.00
D102: напиток | E102: чай с сахаром | F102: 200 | G102: 0.2 | H102: 0.1 | I102: 9.3 | J102: 38 | K102: 457 | L102: 10.00
D103: хлеб бел. | E103: Хлеб пшеничный | F103: 50 | G103: 3.94 | H103: 0.4 | I103: 26.6 | J103: 129.4 | L103: 6.00
D104: хлеб черн. | E104: Хлеб ржано-пшеничный | F104: 50 | G104: 3.74 | H104: 0.54 | I104: 24.24 | J104: 119 | L104: 6.00
D106: итого | F106: 815 | G106: =SUM(G98:G105) -> 26.83 | H106: =SUM(H98:H105) -> 23.06 | I106: 96.75 | J106: 706.7 | L106: 107.5
A107: 2 | B107: 1 | C107: Итого за день: | F107: =F97+F106 -> 815 | G107: =G97+G106 -> 26.83 | H107: 23.06 | I107: 96.75 | J107: 706.7 | K107: 0 | L107: 107.5
A108: 2 | B108: 2 | C108: Завтрак | D108: 2 блюдо
D109: охл. Напиток
D110: фрукты
D111: итого | G111: =SUM(G108:G110) -> 0 | H111: =SUM(H108:H110) -> 0 | I111: =SUM(I108:I110) -> 0 | J111: =SUM(J108:J110) -> 0 | L111: =SUM(L108:L110) -> 0
A112: 2 | B112: 2 | C112: Обед | D112: закуска | E112: Винегрет овощной | F112: 60 | G112: 0.96 | H112: 3.72 | I112: 3.96 | J112: 52.8 | K112: 47 | L112: 10.00
D113: 1 блюдо | E113: Суп-пюре из разных овощей с гренками | F113: 200/15 | G113: 2.32 | H113: 3.76 | I113: 5.8 | J113: 66.4 | K113: 134 | L113: 16.00
D114: 2 блюдо | E114: Тефтели рыбные из минтая с соусом томатным | F114: 100 | G114: 8.95 | H114: 5.48 | I114: 9.16 | J114: 121.07 | K114: ТУ584 | L114: 39.50
D115: гарнир | E115: Рис отварной | F115: 150 | G115: 3.77 | H115: 5.43 | I115: 38.85 | J115: 219.3 | K115: 385 | L115: 16.00
D116: напиток | E116: Компот из смеси сухофруктов витамин | F116: 200 | G116: 0.6 | H116: 0.1 | I116: 20.1 | J116: 84 | K116: 495 | L116: 12.00
D117: хлеб бел. | E117: Хлеб пшеничный | F117: 50 | G117: 3.94 | H117: 0.4 | I117: 26.6 | J117: 129.4 | L117: 6.00
D118: хлеб черн. | E118: Хлеб ржано-пшеничный | F118: 50 | G118: 3.74 | H118: 0.54 | I118: 24.24 | J118: 119 | L118: 6.00
D120: итого | F120: 825 | G120: =SUM(G112:G119) -> 24.28 | H120: =SUM(H112:H119) -> 19.43 | I120: 128.71 | J120: 791.97 | L120: 105.5
A121: 2 | B121: 2 | C121: Итого за день: | F121: =F111+F120 -> 825 | G121: =G111+G120 -> 24.28 | H121: 19.43 | I121: 128.71 | J121: 791.97 | L121: 105.5
A122: 2 | B122: 3 | C122: Завтрак | D122: гор.блюдо
D123: гор.напиток
D124: гастрономия
D125: хлеб.бел
D126: хлеб.черн
D128: итого | G128: =SUM(G122:G127) -> 0 | H128: =SUM(H122:H127) -> 0 | I128: =SUM(I122:I127) -> 0 | J128: =SUM(J122:J127) -> 0 | L128: =SUM(L122:L127) -> 0
A129: 2 | B129: 3 | C129: Обед | D129: закуска | E129: Салат из квашеной капусты с луком | F129: 60 | G129: 0.96 | H129: 3.6 | I129: 4.92 | J129: 56.4 | K129: 9 | L129: 8.00
D130: 1 блюдо | E130: Борщ с капустой и картофелем | F130: 200/5 | G130: 1.48 | H130: 3.54 | I130: 5.56 | J130: 60 | K130: 95 | L130: 10.00
D131: 2 блюдо | E131: Котлеты из говядины с соусом томатным | F131: 100 | G131: 10.26 | H131: 11.92 | I131: 6.74 | J131: 180.54 | K131: ТУ030 | L131: 49.50
D132: гарнир | E132: Пюре картофельное | F132: 150 | G132: 4.05 | H132: 6 | I132: 8.7 | J132: 105 | K132: 377 | L132: 26.00
D133: напиток | E133: Кисель из концентрата витамин | F133: 200 | G133: 0 | H133: 0 | I133: 15 | J133: 60 | K133: 484 | L133: 10.00
D134: хлеб бел. | E134: Хлеб пшеничный | F134: 50 | G134: 3.94 | H134: 0.4 | I134: 26.6 | J134: 129.4 | L134: 6.00
D135: хлеб черн. | E135: Хлеб ржано-пшеничный | F135: 50 | G135: 3.74 | H135: 0.54 | I135: 24.24 | J135: 119 | L135: 6.00
D136: итого | F136: 815 | G136: =SUM(G129:G135) -> 24.43 | H136: =SUM(H129:H135) -> 26 | I136: 91.76 | J136: 710.34 | L136: 115.5
A137: 2 | B137: 3 | C137: Итого за день: | F137: =F128+F136 -> 815 | G137: =G128+G136 -> 24.43 | H137: 26 | I137: 91.76 | J137: 710.34 | K137: 0 | L137: 115.5
A138: 2 | B138: 4 | C138: Завтрак | D138: 2 блюдо
D139: гарнир
D140: охл.напиток
D141: конд.изделия
D142: хлеб бел.
D144: итого | G144: =SUM(G138:G143) -> 0 | H144: =SUM(H138:H143) -> 0 | I144: 0 | J144: 0 | L144: 0
A145: 2 | B145: 4 | C145: Обед | D145: закуска | E145: Салат картофельный с огурцами сллеными | F145: 100 | G145: 2.1 | H145: 6.3 | I145: 8.2 | J145: 98 | K145: 43 | L145: 12.00
D146: 1 блюдо | E146: Суп картофельный с бобовыми | F146: 200 | G146: 5.04 | H146: 2.86 | I146: 11.68 | J146: 92.6 | K146: 113 | L146: 10.00
D147: 2 блюдо | E147: Плов из отварной птицы | F147: 200 | G147: 12.3 | H147: 8.2 | I147: 24.8 | J147: 223 | K147: 375 | L147: 60.50
D148: напиток | E148: Кофейный напиток с молоком | F148: 200 | G148: 1.4 | H148: 1.2 | I148: 11.4 | J148: 63 | K148: 464 | L148: 13.00
D149: хлеб бел. | E149: Хлеб пшеничный | F149: 50 | G149: 3.94 | H149: 0.4 | I149: 26.6 | J149: 129.4 | L149: 6.00
D150: хлеб черн. | E150: Хлеб ржано-пшеничный | F150: 50 | G150: 3.74 | H150: 0.54 | I150: 24.24 | J150: 119 | L150: 6.00
D152: итого | F152: 800 | G152: =SUM(G145:G151) -> 28.52 | H152: =SUM(H145:H151) -> 19.5 | I152: =SUM(I145:I151) -> 106.92 | J152: =SUM(J145:J151) -> 725 | L152: =SUM(L145:L151) -> 107.5
A153: 2 | B153: 4 | C153: Итого за день: | F153: =F144+F152 -> 800 | G153: =G152+G144 -> 28.52 | H153: 19.5 | I153: 106.92 | J153: 725 | K153: 0 | L153: 107.5
A154: 2 | B154: 5 | C154: Завтрак | D154: гор.блюдо
D155: гастрономия
D156: гор.напиток
D157: хлеб бел.
D158: хлеб черн.
D160: итого | G160: =SUM(G154:G159) -> 0 | H160: =SUM(H154:H159) -> 0 | I160: 0 | J160: 0 | L160: =SUM(L154:L159) -> 0
A161: 2 | B161: 5 | C161: Обед | D161: закуска | E161: Салат из свеклы отварной | F161: 60 | G161: 0.84 | H161: 3.66 | I161: 4.56 | J161: 54.6 | K161: 26 | L161: 12.00
D162: 1 блюдо | E162: Суп из овощей | F162: 200/5 | G162: 1.6 | H162: 3.62 | I162: 5.06 | J162: 59.2 | K162: 116 | L162: 10.00
D163: 2 блюдо | E163: Котлеты из говядины с соусом томатным | F163: 100 | G163: 10.26 | H163: 11.92 | I163: 6.74 | J163: 180.54 | K163: ТУ 030 | L163: 49.50
D164: гарнир | E164: Макаронные изделия отварные | F164: 150 | G164: 5.55 | H164: 4.95 | I164: 29.55 | J164: 184.5 | K164: 256 | L164: 14.00
D165: напиток | E165: Чай с лимоном | F165: 200/5 | G165: 0.3 | H165: 0.1 | I165: 9.5 | J165: 40 | K165: 459 | L165: 10.00
D166: хлеб бел. | E166: Хлеб пшеничный | F166: 50 | G166: 3.94 | H166: 0.4 | I166: 26.6 | J166: 129.4 | L166: 6.00
D167: хлеб черн. | E167: Хлеб ржано-пшеничный | F167: 25 | G167: 1.87 | H167: 0.27 | I167: 12.12 | J167: 59.5 | L167: 4.00
D170: итого | F170: 795 | G170: =SUM(G161:G169) -> 24.36 | H170: =SUM(H161:H169) -> 24.92 | I170: 94.13 | J170: 707.74 | L170: =SUM(L161:L169) -> 105.5
A171: 2 | B171: 5 | C171: Итого за день: | F171: =F160+F170 -> 795 | G171: =G170+G160 -> 24.36 | H171: =H170+H160 -> 24.92 | I171: 94.13 | J171: 707.74 | K171: 0 | L171: 105.5
C172: Итого за 12 дней | F172: =F22+F39+F56+F73+F90+F107+F121+F137+F153+F171 -> 8125 | G172: =G22+G39+G56+G73+G90+G107+G121+G137+G153+G171 -> 263.23 | H172: =H22+H39+H56+H73+H90+H107+H121+H137+H153+H171 -> 240.59 | I172: 1024.03 | J172: 7389.49 | K172: 0 | L172: 1070
C173: Среднее значение за период: | F173: =F172/10 -> 812.50 | G173: =G172/10 -> 26.32 | H173: 24.06 | I173: 102.40 | J173: 738.95 | K173: 0.00 | L173: 107.00

Sheet Лист2

Sheet Лист3
